{"text_format":"1","workbook":"xlsx","n_sheets":2,"sheets":["Awal","Result"],"not_rendered":{"charts":0,"images":0,"macros":1,"external_links":0,"defined_names":0,"comments":0,"pivot_tables":0},"unopened":[],"bounds":{"document_bytes":16777216,"sheet_cells":100000,"rows_first":2000,"rows_last":500,"rows_between":2000,"halvings":0,"cell_chars":16384,"cell_head_chars":4096},"cells_cut":0,"cells_raw":0,"read":"whole","date_system":"1900"}

{"sheet":"Awal","index":0,"n_rows":22,"n_cols":7,"rows_kept":22,"cut":false,"hidden":false,"merged":[]}
[]
[]
[]
[null,"no","ID","Tanggal","Status",null,"Jika ada status Pembayaran telah diterima, maka selain status itu, akan terhapus dan posisi nya akan tertulis dari atas *lihat sheet result"]
[null,{"$f":"IF(LEN(C5),ROW(A1),\"\")","v":1},"532687928","30-06-2020","Pemesanan sedang diproses oleh penjual."]
[null,2,"532704578","30-06-2020","Pemesanan sedang diproses oleh penjual."]
[null,3,"532729645","30-06-2020","Transaksi ditolak."]
[null,4,"532729645","30-06-2020","Transaksi ditolak."]
[null,5,"532730918","30-06-2020","Pemesanan sedang diproses oleh penjual."]
[null,6,"532743238","30-06-2020","Pemesanan sedang diproses oleh penjual."]
[null,7,"532773736","30-06-2020","Pemesanan sedang diproses oleh penjual."]
[null,8,532813081,"30-06-2020","Pembayaran telah diterima Tokopedia dan pesanan sudah diteruskan ke penjual."]
[null,9,532836513,"30-06-2020","Pembayaran telah diterima Tokopedia dan pesanan sudah diteruskan ke penjual."]
[null,10,532837268,"30-06-2020","Pembayaran telah diterima Tokopedia dan pesanan sudah diteruskan ke penjual."]
[null,11,532837268,"30-06-2020","Pembayaran telah diterima Tokopedia dan pesanan sudah diteruskan ke penjual."]
[null,12,532870643,"30-06-2020","Pembayaran telah diterima Tokopedia dan pesanan sudah diteruskan ke penjual."]
[null,13,532889154,"30-06-2020","Pembayaran telah diterima Tokopedia dan pesanan sudah diteruskan ke penjual."]
[null,14,532950672,"2020-01-07","Pembayaran telah diterima Tokopedia dan pesanan sudah diteruskan ke penjual."]
[null,15,533006714,"2020-01-07","Pembayaran telah diterima Tokopedia dan pesanan sudah diteruskan ke penjual."]
[null,16,532998918,"2020-01-07","Pembayaran telah diterima Tokopedia dan pesanan sudah diteruskan ke penjual."]
[null,17,533025099,"2020-01-07","Pembayaran telah diterima Tokopedia dan pesanan sudah diteruskan ke penjual."]
[null,18,533048683,"2020-01-07","Pembayaran telah diterima Tokopedia dan pesanan sudah diteruskan ke penjual."]

{"sheet":"Result","index":1,"n_rows":22,"n_cols":5,"rows_kept":22,"cut":false,"hidden":false,"merged":[]}
[]
[]
[]
[null,"no","ID","Tanggal","Status"]
[null,{"$f":"IF(LEN(C5),ROW(A1),\"\")","v":""}]
[null,{"$f":"IF(LEN(C6),ROW(A2),\"\")","v":""}]
[null,""]
[null,""]
[null,""]
[null,""]
[null,""]
[null,""]
[null,""]
[null,""]
[null,""]
[null,""]
[null,""]
[null,""]
[null,""]
[null,""]
[null,""]
[null,""]